fUSD/lending_fUSD_20260227
["ID","MTS","AMOUNT","RATE_DAILY","PERIOD"]
[406812778,1772203981080,-500.0,0.00046096,120]
[406812779,1772203981090,-500.0,0.00046096,120]
[406812780,1772203981103,-500.0,0.00046096,120]
[406812781,1772203981114,-500.0,0.00046096,120]
[406812782,1772203981125,-500.0,0.00046096,120]
[406812783,1772203981134,-500.0,0.00046096,120]
[406812784,1772203981144,-500.0,0.00046096,120]
[406812785,1772203981154,-500.0,0.00046096,120]
[406812786,1772203981164,-500.0,0.00046096,120]
[406812787,1772203981174,-500.0,0.00046096,120]
[406812788,1772203981183,-500.0,0.00046096,120]
[406812789,1772203981194,-500.0,0.00046096,120]
[406812790,1772203981203,-500.0,0.00046096,120]
[406812791,1772203981213,-259.3453733,0.00046096,120]
[406812792,1772203981223,-500.0,0.00046096,120]
[406812793,1772203981232,-500.0,0.00046096,120]
[406812794,1772203981241,-263.05571452,0.00046096,120]
[406812795,1772203981252,-72344.99,0.00046096,120]
[406812796,1772203981261,-150.00000073,0.00046096,120]
[406812797,1772203981271,-500.0,0.00046096,120]
[406812798,1772203981280,-500.0,0.00046096,120]
[406812799,1772203981291,-500.0,0.00046096,120]
[406812800,1772203981300,-500.0,0.00046096,120]
[406812801,1772203981310,-500.0,0.00046096,120]
[406812802,1772203981319,-500.0,0.00046096,120]
[406812803,1772203981329,-500.0,0.00046096,120]
[406812804,1772203981339,-500.0,0.00046096,120]
[406812805,1772203981348,-500.0,0.00046096,120]
[406812806,1772203981358,-500.0,0.00046096,120]
[406812807,1772203981367,-500.0,0.00046096,120]
[406812808,1772203981376,-500.0,0.00046096,120]
[406812809,1772203981386,-500.0,0.00046096,120]
[406812810,1772203981395,-500.0,0.00046096,120]
[406812811,1772203981405,-500.0,0.00046096,120]
[406812812,1772203981415,-500.0,0.00046096,120]
[406812813,1772203981424,-500.0,0.00046096,120]
[406812814,1772203981436,-500.0,0.00046096,120]
[406812815,1772203981448,-500.0,0.00046096,120]
[406812816,1772203981457,-500.0,0.00046096,120]
[406812817,1772203981467,-500.0,0.00046096,120]
[406812818,1772203981477,-500.0,0.00046096,120]
[406812819,1772203981487,-500.0,0.00046096,120]
[406812820,1772203981499,-500.0,0.00046096,120]
[406812821,1772203981509,-500.0,0.00046096,10]
[406812822,1772203981518,-500.0,0.00046096,10]
[406812823,1772203981528,-500.0,0.00046096,10]
[406812824,1772203981537,-506.4048,0.00046096,10]
[406812825,1772203981547,-150.2078,0.00046096,120]
[406812826,1772203981557,-1091.32127203,0.00046096,120]
[406812827,1772203981566,-500.0,0.00046096,120]
[406812828,1772203981576,-500.0,0.00046096,120]
[406812829,1772203981586,-500.0,0.00046096,120]
[406812830,1772203981596,-500.0,0.00046096,120]
[406812831,1772203981606,-580.95,0.00046096,120]
[406812832,1772203981617,-350385.0,0.00046096,120]
[406812833,1772203981627,-5997.6,0.00046096,120]
[406812834,1772203981637,-5997.6,0.00046096,120]
[406812835,1772203981647,-5997.6,0.00046096,120]
[406812836,1772203981656,-5997.6,0.00046096,120]
[406812837,1772203981666,-5997.6,0.00046096,120]
[406812838,1772203981675,-5997.6,0.00046096,120]
[406812839,1772203981685,-5997.6,0.00046096,120]
[406812840,1772203981694,-5997.6,0.00046096,120]
[406812841,1772203981703,-5997.6,0.00046096,120]
[406812842,1772203981713,-5997.6,0.00046096,120]
[406812843,1772203981722,-5997.6,0.00046096,120]
[406812844,1772203981732,-5997.6,0.00046096,120]
[406812845,1772203981741,-5997.6,0.00046096,120]
[406812846,1772203981754,-5997.6,0.00046096,120]
[406812847,1772203981763,-5997.6,0.00046096,120]
[406812848,1772203981772,-5997.6,0.00046096,120]
[406812849,1772203981782,-5997.6,0.00046096,120]
[406812850,1772203981792,-5997.6,0.00046096,120]
[406812851,1772203981801,-5997.6,0.00046096,120]
[406812852,1772203981810,-5997.6,0.00046096,120]
[406812853,1772203981820,-5997.6,0.00046096,120]
[406812854,1772203981829,-5997.6,0.00046096,120]
[406812855,1772203981839,-5997.6,0.00046096,120]
[406812856,1772203981849,-5997.71412979,0.00046096,120]
[406812857,1772203981858,-556.59743949,0.00046096,120]
[406812858,1772203981867,-500.0,0.00046096,120]
[406812859,1772203981877,-500.0,0.00046096,120]
[406812860,1772203981887,-500.0,0.00046096,120]
[406812861,1772203981899,-500.0,0.00046096,120]
[406812862,1772203981908,-500.0,0.00046096,120]
[406812863,1772203981918,-500.0,0.00046096,120]
[406812864,1772203981927,-500.0,0.00046096,120]
[406812865,1772203981937,-500.0,0.00046096,120]
[406812866,1772203981947,-500.0,0.00046096,120]
[406812867,1772203981956,-538.75307323,0.00046096,120]
[406812868,1772203981965,-500.0,0.00046096,120]
[406812869,1772203981975,-500.0,0.00046096,120]
[406812870,1772203981984,-500.0,0.00046096,120]
[406812871,1772203981994,-500.0,0.00046096,120]
[406812872,1772203982003,-500.0,0.00046096,120]
[406812873,1772203982013,-500.0,0.00046096,120]
[406812874,1772203982023,-500.0,0.00046096,120]
[406812875,1772203982032,-500.0,0.00046096,120]
[406812876,1772203982042,-768.07,0.00046096,120]
[406812877,1772203982052,-768.07,0.00046096,120]
[406812878,1772203982061,-768.07,0.00046096,120]
[406812879,1772203982072,-768.07,0.00046096,120]
[406812880,1772203982081,-768.07,0.00046096,120]
[406812881,1772203982090,-768.07,0.00046096,120]
[406812882,1772203982100,-768.07,0.00046096,120]
[406812883,1772203982110,-768.07,0.00046096,120]
[406812884,1772203982119,-768.07,0.00046096,120]
[406812885,1772203982129,-768.07,0.00046096,120]
[406812886,1772203982138,-768.07,0.00046096,120]
[406812887,1772203982148,-768.07,0.00046096,120]
[406812888,1772203982158,-768.07,0.00046096,120]
[406812889,1772203982168,-768.07,0.00046096,120]
[406812890,1772203982178,-768.07,0.00046096,120]
[406812891,1772203982188,-768.07,0.00046096,120]
[406812892,1772203982198,-768.07,0.00046096,120]
[406812893,1772203982207,-768.07,0.00046096,120]
[406812894,1772203982217,-768.07,0.00046096,120]
[406812895,1772203982226,-768.07,0.00046096,120]
[406812896,1772203982236,-768.07,0.00046096,120]
[406812897,1772203982247,-768.07,0.00046096,120]
[406812898,1772203982256,-768.07,0.00046096,120]
[406812899,1772203982266,-768.16945798,0.00046096,120]
[406812900,1772203982276,-116139.20000016,0.00046096,30]
[406812901,1772203982285,-200.0,0.00046096,120]
[406812902,1772203982295,-485.0,0.00046096,120]
[406812903,1772203982306,-500.0,0.00046096,120]
[406812904,1772203982316,-500.0,0.00046096,120]
[406812905,1772203982326,-500.0,0.00046096,120]
[406812906,1772203982335,-500.0,0.00046096,120]
[406812907,1772203982344,-500.0,0.00046096,120]
[406812908,1772203982353,-500.0,0.00046096,120]
[406812909,1772203982363,-500.0,0.00046096,120]
[406812910,1772203982372,-500.0,0.00046096,120]
[406812911,1772203982382,-500.0,0.00046096,120]
[406812912,1772203982391,-500.0,0.00046096,120]
[406812913,1772203982401,-500.0,0.00046096,120]
[406812914,1772203982410,-218170.2745638,0.00046096,60]
[406812915,1772203982503,-10463.60794941,0.00046096,60]
[406812916,1772203982515,-5050.83085181,0.00046096,120]
[406812917,1772203982525,-1285.519135,0.00046096,2]
[406812918,1772203982534,-2510.14,0.00046096,120]
[406812919,1772203982544,-730.73,0.00046096,120]
[406812920,1772203982553,-810.21,0.00046096,120]
[406812921,1772203982562,-810.21,0.00046096,120]
[406812922,1772203982571,-493.46040378,0.00046096,2]
[406812923,1772203982581,-294.74,0.00046096,120]
[406812924,1772203982591,-150.40864283,0.00046096,120]
[406812925,1772203982601,-24508.2404581,0.00046096,120]
[406812926,1772203982610,-1530.44,0.00046096,120]
[406812927,1772203982620,-502.70973236,0.00046096,7]
[406812928,1772203982630,-500.0,0.00046096,7]
[406812929,1772203982640,-500.0,0.00046096,7]
[406812930,1772203982649,-500.0,0.00046096,7]
[406812931,1772203982658,-500.0,0.00046096,7]
[406812932,1772203982667,-500.0,0.00046096,7]
[406812933,1772203982676,-500.0,0.00046096,7]
[406812934,1772203982686,-500.0,0.00046096,7]
[406812935,1772203982695,-500.0,0.00046096,7]
[406812936,1772203982705,-500.0,0.00046096,7]
[406812937,1772203982715,-159.37798595,0.00046096,7]
[406812938,1772203982724,-500.0,0.00046096,120]
[406812939,1772203982733,-500.0,0.00046096,120]
[406812940,1772203982743,-247.02426,0.00046096,120]
[406812941,1772203982753,-363.79434586,0.00046096,120]
[406812942,1772203982762,-700.0,0.00046096,120]
[406812943,1772203982771,-700.0,0.00046096,120]
[406812944,1772203982780,-700.0,0.00046096,120]
[406812945,1772203982789,-700.0,0.00046096,120]
[406812946,1772203982799,-700.0,0.00046096,120]
[406812947,1772203982808,-700.0,0.00046096,120]
[406812948,1772203982817,-700.0,0.00046096,120]
[406812949,1772203982826,-656.41274376,0.00046096,120]
[406812950,1772203982835,-513.45607275,0.00046096,120]
[406812951,1772203982844,-500.0,0.00046096,120]
[406812952,1772203982854,-511.41695661,0.00046096,120]
[406812953,1772203982864,-500.0,0.00046096,120]
[406812954,1772203982873,-350.2144133,0.00046096,120]
[406812955,1772203982882,-100000.0,0.00046096,60]
[406812956,1772203982892,-1362.23,0.00046096,30]
[406812957,1772203982902,-201.04,0.00046096,30]
[406812958,1772203982912,-501.36,0.00046096,30]
[406812959,1772203982921,-158.13,0.00046096,30]
[406812960,1772203982931,-16414.6253486,0.00046096,120]
[406812961,1772203982941,-16414.6253486,0.00046096,120]
[406812962,1772203982950,-16414.6253486,0.00046096,120]
[406812963,1772203982960,-16414.6253486,0.00046096,120]
[406812964,1772203982970,-16414.6253486,0.00046096,120]
[406812965,1772203982980,-16414.6253486,0.00046096,120]
[406812966,1772203982990,-16414.6253486,0.00046096,120]
[406812967,1772203983000,-16414.6253486,0.00046096,120]
[406812968,1772203983011,-16414.6253486,0.00046096,120]
[406812969,1772203983021,-16414.6253486,0.00046096,120]
[406812970,1772203983030,-179.49357017,0.00046096,90]
[406812971,1772203983040,-69593.47341267,0.00046096,120]
[406812972,1772203983049,-1504.553825,0.00046096,120]
[406812973,1772203983058,-2822.234254,0.00046096,120]
[406812974,1772203983068,-311.12,0.00046096,30]
[406812975,1772203983078,-500.0,0.00046096,120]
[406812976,1772203983088,-500.0,0.00046096,120]
[406812977,1772203983098,-500.0,0.00046096,120]
[406812978,1772203983107,-500.0,0.00046096,120]
[406812979,1772203983117,-500.0,0.00046096,120]
[406812980,1772203983126,-500.0,0.00046096,120]
[406812981,1772203983136,-500.0,0.00046096,120]
[406812982,1772203983145,-500.0,0.00046096,120]
[406812983,1772203983154,-500.0,0.00046096,120]
[406812984,1772203983163,-155.0,0.00046096,2]
[406812985,1772203983173,-500.0,0.00046096,120]
[406812986,1772203983183,-500.0,0.00046096,120]
[406812987,1772203983193,-155.0,0.00046096,2]
[406812988,1772203983203,-500.0,0.00046096,120]
[406812989,1772203983212,-155.0,0.00046096,2]
[406812990,1772203983222,-500.0,0.00046096,120]
[406812991,1772203983232,-500.0,0.00046096,120]
[406812992,1772203983241,-155.0,0.00046096,2]
[406812993,1772203983253,-500.0,0.00046096,120]
[406812994,1772203983262,-500.0,0.00046096,120]
[406812995,1772203983272,-155.0,0.00046096,2]
[406812996,1772203983281,-500.0,0.00046096,120]
[406812997,1772203983291,-395.709407,0.00046096,120]
[406812998,1772203983300,-163.54742034,0.00046096,120]
[406812999,1772203983309,-591.29,0.00046096,120]
[406813000,1772203983318,-591.29,0.00046096,120]
[406813001,1772203983328,-591.29,0.00046096,120]
[406813002,1772203983336,-591.29,0.00046096,120]
[406813003,1772203983346,-591.29,0.00046096,120]
[406813004,1772203983356,-591.29,0.00046096,120]
[406813005,1772203983364,-591.29,0.00046096,120]
[406813006,1772203983374,-591.29,0.00046096,120]
[406813007,1772203983383,-591.29,0.00046096,120]
[406813008,1772203983391,-591.29,0.00046096,120]
[406813009,1772203983400,-591.29,0.00046096,120]
[406813010,1772203983409,-591.29,0.00046096,120]
[406813011,1772203983418,-591.29,0.00046096,120]
[406813012,1772203983427,-591.29,0.00046096,120]
[406813013,1772203983438,-591.29,0.00046096,120]
[406813014,1772203983447,-591.29,0.00046096,120]
[406813015,1772203983457,-591.29,0.00046096,120]
[406813016,1772203983466,-591.29,0.00046096,120]
[406813017,1772203983475,-591.29,0.00046096,120]
[406813018,1772203983486,-591.29,0.00046096,120]
[406813019,1772203983495,-591.29,0.00046096,120]
[406813020,1772203983504,-591.29,0.00046096,120]
[406813021,1772203983514,-591.29,0.00046096,120]
[406813022,1772203983523,-591.32391725,0.00046096,120]
[406813023,1772203983533,-248.14371049,0.00046096,120]
[406813024,1772203983543,-1000.0,0.00046096,120]
[406813025,1772203983551,-268.42636938,0.00046096,120]
[406813026,1772203983561,-560.22558186,0.00046096,120]
[406813027,1772203983571,-472.99,0.00046096,30]
[406813028,1772203983580,-154.37,0.00046096,30]
[406813029,1772203983589,-519.69,0.00046096,30]
[406813030,1772203983599,-260.85213565,0.00046096,120]
[406813031,1772203983608,-4379.97,0.00046096,120]
[406813032,1772203983617,-4379.97,0.00046096,120]
[406813033,1772203983627,-4379.97,0.00046096,120]
[406813034,1772203983636,-4379.97,0.00046096,120]
[406813035,1772203983645,-4379.97,0.00046096,120]
[406813036,1772203983655,-4379.97,0.00046096,120]
[406813037,1772203983664,-4379.97,0.00046096,120]
[406813038,1772203983673,-4379.97,0.00046096,120]
[406813039,1772203983682,-4379.97,0.00046096,120]
[406813040,1772203983691,-4379.97,0.00046096,120]
[406813041,1772203983701,-4379.97,0.00046096,120]
[406813042,1772203983710,-4379.97,0.00046096,120]
[406813043,1772203983719,-4379.97,0.00046096,120]
[406813044,1772203983728,-4379.97,0.00046096,120]
[406813045,1772203983738,-4379.97,0.00046096,120]
[406813046,1772203983748,-4379.97,0.00046096,120]
[406813047,1772203983758,-4379.97,0.00046096,120]
[406813048,1772203983767,-4379.97,0.00046096,120]
[406813049,1772203983775,-4379.97,0.00046096,120]
[406813050,1772203983784,-4379.97,0.00046096,120]
[406813051,1772203983793,-4379.97,0.00046096,120]
[406813052,1772203983802,-4379.97,0.00046096,120]
[406813053,1772203983812,-4379.97,0.00046096,120]
[406813054,1772203983821,-4380.16587591,0.00046096,120]
[406813055,1772203983830,-150.0,0.00046096,120]
[406813056,1772203983839,-484.37,0.00046096,30]
[406813057,1772203983848,-266.833324,0.00046096,120]
[406813058,1772203983857,-457.97028137,0.00046096,120]
[406813059,1772203983866,-639.73,0.00046096,30]
[406813060,1772203983875,-172.31,0.00046096,30]
[406813061,1772203983884,-206.02,0.00046096,30]
[406813062,1772203983893,-548.34568739,0.00046096,120]
[406813063,1772203983902,-3465.54,0.00046096,120]
[406813064,1772203983911,-3465.54,0.00046096,120]
[406813065,1772203983921,-3465.54,0.00046096,120]
[406813066,1772203983931,-3465.54,0.00046096,120]
[406813067,1772203983940,-3465.54,0.00046096,120]
[406813068,1772203983950,-3465.54,0.00046096,120]
[406813069,1772203983959,-3465.54,0.00046096,120]
[406813070,1772203983968,-3465.54,0.00046096,120]
[406813071,1772203983978,-3465.54,0.00046096,120]
[406813072,1772203983988,-3465.54,0.00046096,120]
[406813073,1772203983998,-3465.54,0.00046096,120]
[406813074,1772203984007,-3465.54,0.00046096,120]
[406813075,1772203984016,-3465.54,0.00046096,120]
[406813076,1772203984026,-3465.54,0.00046096,120]
[406813077,1772203984034,-3465.54,0.00046096,120]
[406813078,1772203984043,-3465.54,0.00046096,120]
[406813079,1772203984052,-3465.54,0.00046096,120]
[406813080,1772203984062,-3465.54,0.00046096,120]
[406813081,1772203984071,-3465.54,0.00046096,120]
[406813082,1772203984081,-3465.54,0.00046096,120]
[406813083,1772203984091,-3465.54,0.00046096,120]
[406813084,1772203984100,-3465.54,0.00046096,120]
[406813085,1772203984110,-3465.54,0.00046096,120]
[406813086,1772203984120,-3465.60020055,0.00046096,120]
[406813087,1772203984130,-2025.955,0.000461,14]
[406813088,1772203984140,-500.58,0.00046102,30]
[406813089,1772203984150,-549.15629528,0.00046105,30]
[406813090,1772203984159,-151.0,0.00046105,30]
[406813091,1772203984168,-200.0,0.00046105,30]
[406813092,1772203984178,-250.0,0.00046105,30]
[406813093,1772203984187,-250.0,0.00046105,30]
[406813094,1772203984196,-151.0,0.00046105,47]
[406813095,1772203984207,-207.4,0.00046105,47]
[406813096,1772203984218,-250.0,0.00046105,47]
[406813097,1772203984227,-250.0,0.00046105,47]
[406813098,1772203984236,-151.0,0.00046105,50]
[406813099,1772203984247,-200.0,0.00046105,30]
[406813100,1772203984258,-215.0738,0.00046105,50]
[406813101,1772203984268,-250.0,0.00046105,50]
[406813102,1772203984278,-250.0,0.00046105,50]
[406813103,1772203984287,-216.23565274,0.00046105,47]
[406813104,1772203984296,-223.0315306,0.00046105,51]
[406813105,1772203984306,-250.0,0.00046105,51]
[406813106,1772203984315,-151.0,0.00046105,51]
[406813107,1772203984323,-250.0,0.00046105,51]
[406813108,1772203984332,-231.28369723,0.00046105,52]
[406813109,1772203984341,-250.0,0.00046105,30]
[406813110,1772203984350,-151.0,0.00046105,30]
[406813111,1772203984359,-500.0,0.00046105,30]
[406813112,1772203984367,-250.0,0.00046105,52]
[406813113,1772203984376,-151.0,0.00046105,52]
[406813114,1772203984385,-250.0,0.00046105,52]
[406813115,1772203984394,-239.84119403,0.00046105,53]
[406813116,1772203984403,-500.0,0.00046105,30]
[406813117,1772203984412,-250.0,0.00046105,47]
[406813118,1772203984421,-151.0,0.00046105,47]
[406813119,1772203984431,-500.0,0.00046105,47]
[406813120,1772203984443,-250.0,0.00046105,53]
[406813121,1772203984452,-151.0,0.00046105,53]
[406813122,1772203984461,-250.0,0.00046105,53]
[406813123,1772203984470,-518.5,0.00046105,47]
[406813124,1772203984481,-248.71531821,0.00046105,54]
[406813125,1772203984491,-250.0,0.00046105,50]
[406813126,1772203984501,-151.0,0.00046105,50]
[406813127,1772203984512,-250.0,0.00046105,54]
[406813128,1772203984522,-151.0,0.00046105,54]
[406813129,1772203984531,-250.0,0.00046105,54]
[406813130,1772203984540,-537.6845,0.00046105,50]
[406813131,1772203984549,-151.0,0.00046105,51]
[406813132,1772203984558,-151.0,0.00046105,55]
[406813133,1772203984567,-557.5788265,0.00046105,51]
[406813134,1772203984577,-151.0,0.00046105,52]
[406813135,1772203984586,-151.0,0.00046105,56]
[406813136,1772203984595,-620.0,0.00046105,30]
[406813137,1772203984604,-151.0,0.00046105,53]
[406813138,1772203984613,-151.0,0.00046105,60]
[406813139,1772203984622,-642.94,0.00046105,47]
[406813140,1772203984632,-151.0,0.00046105,54]
[406813141,1772203984641,-666.72878,0.00046105,50]
[406813142,1772203984651,-151.0,0.00046105,61]
[406813143,1772203984660,-250.0,0.00046105,51]
[406813144,1772203984669,-691.39774486,0.00046105,51]
[406813145,1772203984679,-151.0,0.00046105,62]
[406813146,1772203984688,-250.0,0.00046105,52]
[406813147,1772203984697,-716.97946142,0.00046105,52]
[406813148,1772203984707,-250.0,0.00046105,53]
[406813149,1772203984718,-151.0,0.00046105,63]
[406813150,1772203984729,-1234.0,0.00046105,30]
[406813151,1772203984738,-250.0,0.00046105,54]
[406813152,1772203984747,-151.0,0.00046105,90]
[406813153,1772203984757,-1234.0,0.00046105,47]
[406813154,1772203984766,-500.0,0.00046105,30]
[406813155,1772203984776,-151.0,0.00046105,91]
[406813156,1772203984785,-1234.0,0.00046105,50]
[406813157,1772203984794,-518.5,0.00046105,47]
[406813158,1772203984803,-151.0,0.00046105,118]
[406813159,1772203984815,-537.6845,0.00046105,50]
[406813160,1772203984825,-151.0,0.00046105,120]
[406813161,1772203984835,-1234.0,0.00046105,51]
[406813162,1772203984844,-557.5788265,0.00046105,51]
[406813163,1772203984854,-1234.0,0.00046105,52]
[406813164,1772203984863,-578.20924308,0.00046105,52]
[406813165,1772203984872,-1234.0,0.00046105,53]
[406813166,1772203984881,-151.0,0.00046105,30]
[406813167,1772203984892,-287.98439631,0.00046105,53]
[406813168,1772203984902,-1277.08707169,0.00046105,54]
[406813169,1772203984912,-156.587,0.00046105,47]
[406813170,1772203984921,-302.8486719,0.00046105,50]
[406813171,1772203984931,-151.0,0.00046105,30]
[406813172,1772203984940,-500.0,0.00046105,30]
[406813173,1772203984950,-500.0,0.00046105,30]
[406813174,1772203984960,-6888.0,0.00046105,30]
[406813175,1772203984969,-500.0,0.00046105,47]
[406813176,1772203984978,-500.0,0.00046105,47]
[406813177,1772203984987,-500.0,0.00046105,50]
[406813178,1772203984997,-500.0,0.00046105,50]
[406813179,1772203985006,-151.0,0.00046105,30]
[406813180,1772203985015,-500.0,0.00046105,51]
[406813181,1772203985024,-500.0,0.00046105,51]
[406813182,1772203985033,-151.0,0.00046105,47]
[406813183,1772203985042,-500.0,0.00046105,52]
[406813184,1772203985052,-7142.856,0.00046105,47]
[406813185,1772203985062,-2000.0,0.00046105,30]
[406813186,1772203985071,-500.0,0.00046105,52]
[406813187,1772203985081,-500.0,0.00046105,53]
[406813188,1772203985090,-7407.141672,0.00046105,50]
[406813189,1772203985099,-2000.0,0.00046105,47]
[406813190,1772203985108,-250.0,0.00046105,30]
[406813191,1772203985117,-500.0,0.00046105,53]
[406813192,1772203985126,-7681.20591386,0.00046105,51]
[406813193,1772203985135,-500.0,0.00046105,54]
[406813194,1772203985145,-250.0,0.00046105,47]
[406813195,1772203985155,-500.0,0.00046105,54]
[406813196,1772203985164,-7965.41053268,0.00046105,52]
[406813197,1772203985174,-250.0,0.00046105,50]
[406813198,1772203985184,-8260.13072239,0.00046105,53]
[406813199,1772203985193,-250.0,0.00046105,51]
[406813200,1772203985203,-1038.33623944,0.00046105,54]
[406813201,1772203985213,-250.0,0.00046105,52]
[406813202,1772203985223,-250.0,0.00046105,53]
[406813203,1772203985232,-151.0,0.00046105,30]
[406813204,1772203985241,-250.0,0.00046105,54]
[406813205,1772203985252,-156.587,0.00046105,47]
[406813206,1772203985261,-162.380719,0.00046105,50]
[406813207,1772203985271,-500.0,0.00046105,30]
[406813208,1772203985280,-168.3888056,0.00046105,51]
[406813209,1772203985289,-500.0,0.00046105,47]
[406813210,1772203985299,-500.0,0.00046105,50]
[406813211,1772203985308,-500.0,0.00046105,51]
[406813212,1772203985317,-500.0,0.00046105,52]
[406813213,1772203985326,-500.0,0.00046105,53]
[406813214,1772203985334,-520.0,0.00046105,30]
[406813215,1772203985343,-500.0,0.00046105,54]
[406813216,1772203985353,-539.24,0.00046105,47]
[406813217,1772203985362,-178.0,0.00046105,30]
[406813218,1772203985371,-559.19188,0.00046105,50]
[406813219,1772203985379,-184.586,0.00046105,47]
[406813220,1772203985388,-579.88197956,0.00046105,51]
[406813221,1772203985397,-191.415682,0.00046105,50]
[406813222,1772203985406,-601.3376128,0.00046105,52]
[406813223,1772203985416,-500.0,0.00046105,30]
[406813224,1772203985426,-198.49806223,0.00046105,51]
[406813225,1772203985441,-623.58710448,0.00046105,53]
[406813226,1772203985451,-500.0,0.00046105,47]
[406813227,1772203985461,-646.65982734,0.00046105,54]
[406813228,1772203985470,-196.29402156,0.00046105,52]
[406813229,1772203985481,-500.0,0.00046105,50]
[406813230,1772203985490,-500.0,0.00046105,51]
[406813231,1772203985501,-500.0,0.00046105,30]
[406813232,1772203985511,-500.0,0.00046105,52]
[406813233,1772203985520,-518.5,0.00046105,47]
[406813234,1772203985530,-500.0,0.00046105,53]
[406813235,1772203985540,-537.6845,0.00046105,50]
[406813236,1772203985549,-1030.0,0.00046105,30]
[406813237,1772203985558,-500.0,0.00046105,54]
[406813238,1772203985568,-557.5788265,0.00046105,51]
[406813239,1772203985577,-1068.11,0.00046105,47]
[406813240,1772203985587,-578.20924308,0.00046105,52]
[406813241,1772203985596,-1107.63007,0.00046105,50]
[406813242,1772203985606,-599.60298507,0.00046105,53]
[406813243,1772203985616,-151.0,0.00046105,30]
[406813244,1772203985625,-1148.61238259,0.00046105,51]
[406813245,1772203985634,-621.78829552,0.00046105,54]
[406813246,1772203985644,-151.0,0.00046105,47]
[406813247,1772203985653,-889.88957223,0.00046105,52]
[406813248,1772203985662,-151.0,0.00046105,50]
[406813249,1772203985671,-151.0,0.00046105,51]
[406813250,1772203985681,-151.0,0.00046105,52]
[406813251,1772203985690,-151.0,0.00046105,53]
[406813252,1772203985700,-151.0,0.00046105,54]
[406813253,1772203985709,-500.0,0.00046105,30]
[406813254,1772203985719,-250.0,0.00046105,30]
[406813255,1772203985728,-500.0,0.00046105,47]
[406813256,1772203985737,-250.0,0.00046105,47]
[406813257,1772203985747,-500.0,0.00046105,50]
[406813258,1772203985757,-250.0,0.00046105,50]
[406813259,1772203985766,-500.0,0.00046105,51]
[406813260,1772203985775,-250.0,0.00046105,51]
[406813261,1772203985785,-500.0,0.00046105,52]
[406813262,1772203985794,-250.0,0.00046105,52]
[406813263,1772203985803,-500.0,0.00046105,53]
[406813264,1772203985812,-250.0,0.00046105,53]
[406813265,1772203985822,-500.0,0.00046105,54]
[406813266,1772203985831,-251.0,0.00046105,30]
[406813267,1772203985840,-250.0,0.00046105,54]
[406813268,1772203985849,-260.287,0.00046105,47]
[406813269,1772203985858,-500.0,0.00046105,30]
[406813270,1772203985868,-500.0,0.00046105,47]
[406813271,1772203985877,-500.0,0.00046105,50]
[406813272,1772203985886,-200.0,0.00046105,30]
[406813273,1772203985896,-500.0,0.00046105,51]
[406813274,1772203985905,-200.0,0.00046105,47]
[406813275,1772203985914,-500.0,0.00046105,52]
[406813276,1772203985923,-200.0,0.00046105,50]
[406813277,1772203985933,-500.0,0.00046105,53]